fUST/lending_fUST_20241001
["ID","MTS","AMOUNT","RATE_DAILY","PERIOD"]
[339626900,1727768542585,500.0,0.00021999,120]
[339626901,1727768542857,500.0,0.00021999,120]
[339626902,1727768545657,597.89,0.00021999,120]
[339626903,1727768545871,500.0,0.00021999,120]
[339626904,1727768546503,500.0,0.00021999,120]
[339626905,1727768547070,500.0,0.00021999,120]
[339626906,1727768547397,583.32,0.00021999,120]
[339626907,1727768547689,500.0,0.00021999,120]
[339626908,1727768549235,500.0,0.00021999,120]
[339626909,1727768550760,500.0,0.00021999,120]
[339626910,1727768551872,910.08,0.00021999,120]
[339626911,1727768552631,1000.23,0.00021999,120]
[339626912,1727768552886,408.16636513,0.00021999,120]
[339626913,1727768553154,500.0,0.00021999,120]
[339626914,1727768554754,500.0,0.00021999,120]
[339626915,1727768556136,500.0,0.00021999,120]
[339626916,1727768558618,500.0,0.00021999,120]
[339626917,1727768559386,501.03678875,0.00021999,120]
[339626918,1727768559891,500.0,0.00021999,120]
[339626919,1727768560085,500.0,0.00021999,120]
[339626920,1727768560138,762.76,0.00021999,120]
[339626921,1727768560274,500.0,0.00021999,120]
[339626922,1727768560446,1149.59,0.00021999,120]
[339626923,1727768561482,500.0,0.00021999,120]
[339626924,1727768561573,543.83,0.00021999,120]
[339626925,1727768561962,500.0,0.00021999,120]
[339626926,1727768562013,739.15,0.00021999,120]
[339626927,1727768563720,500.0,0.00021999,120]
[339626928,1727768564448,500.0,0.00021999,120]
[339626929,1727768564558,568.15,0.00021999,120]
[339626930,1727768565906,500.0,0.00021999,120]
[339626931,1727768569534,500.0,0.00021999,120]
[339626932,1727768569607,500.0,0.00021999,120]
[339626933,1727768572628,500.91327543,0.00021999,120]
[339626934,1727768573100,745.8,0.00021999,120]
[339626935,1727768573535,500.0,0.00021999,120]
[339626936,1727768575631,501.13087032,0.00021999,120]
[339626937,1727768577307,500.0,0.00021999,120]
[339626938,1727768577850,863.76,0.00021999,120]
[339626939,1727768578560,500.0,0.00021999,120]
[339626940,1727768579900,596.89,0.00021999,120]
[339626941,1727768580239,500.0,0.00021999,120]
[339626942,1727768582198,738.5,0.00021999,120]
[339626943,1727768582521,500.0,0.00021999,120]
[339626944,1727768582604,500.0,0.00021999,120]
[339626945,1727768583127,666.93,0.00021999,120]
[339626946,1727768583184,500.0,0.00021999,120]
[339626947,1727768584066,595.0,0.00021999,120]
[339626952,1727768587002,500.0,0.00021999,120]
[339626956,1727768587845,500.0,0.00021999,120]
[339626959,1727768588796,500.0,0.00021999,120]
[339626966,1727768591264,500.0,0.00021999,120]
[339626969,1727768591807,636.43,0.00021999,120]
[339626971,1727768591939,500.0,0.00021999,120]
[339626972,1727768592929,500.0,0.00021999,120]
[339626973,1727768594487,522.46779263,0.00021999,120]
[339626974,1727768594645,500.0,0.00021999,120]
[339626975,1727768595620,652.07,0.00021999,120]
[339626976,1727768596276,500.0,0.00021999,120]
[339626977,1727768596352,585.28,0.00021999,120]
[339626978,1727768597624,813.03,0.00021999,120]
[339626979,1727768598084,321.06364944,0.00021999,120]
[339626980,1727768598325,500.0,0.00021999,120]
[339626981,1727768600155,500.0,0.00021999,120]
[339626982,1727768600597,544.02,0.00021999,120]
[339626983,1727768601455,500.0,0.00021999,120]
[339626984,1727768601702,501.57653388,0.00021999,120]
[339626985,1727768603017,500.0,0.00021999,120]
[339626986,1727768603099,500.0,0.00021999,120]
[339626987,1727768603154,773.87,0.00021999,120]
[339626988,1727768604044,569.44126226,0.00021999,120]
[339626989,1727768605390,497.96043348,0.00021999,120]
[339626990,1727768606120,500.0,0.00021999,120]
[339626991,1727768606750,509.84,0.00021999,120]
[339626992,1727768607535,500.46554667,0.00021999,120]
[339626993,1727768607797,500.0,0.00021999,120]
[339626994,1727768608839,500.0,0.00021999,120]
[339626995,1727768610417,500.0,0.00021999,120]
[339626996,1727768612819,565.24,0.00021999,120]
[339626997,1727768612883,500.0,0.00021999,120]
[339626998,1727768613690,500.0,0.00021999,120]
[339626999,1727768613831,500.0,0.00021999,120]
[339627000,1727768614501,234.68665069,0.00021999,120]
[339627001,1727768616799,500.0,0.00021999,120]
[339627002,1727768617583,182.9457794,0.00021999,120]
[339627003,1727768622316,500.0,0.00021999,120]
[339627004,1727768622638,504.5838336,0.00021999,120]
[339627005,1727768623409,500.0,0.00021999,120]
[339627006,1727768623855,500.0,0.00021999,120]
[339627007,1727768624149,500.0,0.00021999,120]
[339627008,1727768624808,500.0,0.00021999,120]
[339627009,1727768625566,500.0,0.00021999,120]
[339627010,1727768625632,533.24713742,0.00021999,120]
[339627011,1727768626799,500.0,0.00021999,120]
[339627012,1727768628539,500.0,0.00021999,120]
[339627016,1727768629599,510.14918953,0.00021999,120]
[339627022,1727768630856,500.0,0.00021999,120]
[339627025,1727768631551,500.0,0.00021999,120]
[339627031,1727768633202,500.0,0.00021999,120]
[339627032,1727768634883,500.0,0.00021999,120]
[339627033,1727768635135,500.0,0.00021999,120]
[339627034,1727768635712,500.0,0.00021999,120]
[339627035,1727768637716,500.0,0.00021999,120]
[339627038,1727768638671,500.0,0.00021999,120]
[339627041,1727768639287,500.0,0.00021999,120]
[339627044,1727768640150,500.0,0.00021999,120]
[339627050,1727768641873,500.0,0.00021999,120]
[339627051,1727768642941,605.67,0.00021999,120]
[339627052,1727768643418,500.0,0.00021999,120]
[339627053,1727768643724,500.0,0.00021999,120]
[339627054,1727768644684,982.3,0.00021999,120]
[339627055,1727768648454,507.5290637,0.00021999,120]
[339627056,1727768649715,500.0,0.00021999,120]
[339627057,1727768650187,500.0,0.00021999,120]
[339627058,1727768650528,500.0,0.00021999,120]
[339627059,1727768652290,645.36,0.00021999,120]
[339627060,1727768652793,500.0,0.00021999,120]
[339627061,1727768653193,500.0,0.00021999,120]
[339627062,1727768653457,500.0,0.00021999,120]
[339627063,1727768653654,500.0,0.00021999,120]
[339627064,1727768655301,500.0,0.00021999,120]
[339627065,1727768659483,500.0,0.00021999,120]
[339627066,1727768660053,500.0,0.00021999,120]
[339627067,1727768661608,500.0,0.00021999,120]
[339627068,1727768662800,500.0,0.00021999,120]
[339627069,1727768664064,500.0,0.00021999,120]
[339627070,1727768664130,500.0,0.00021999,120]
[339627071,1727768665047,500.42696913,0.00021999,120]
[339627072,1727768666875,500.0,0.00021999,120]
[339627073,1727768667443,500.0,0.00021999,120]
[339627074,1727768668035,500.0,0.00021999,120]
[339627075,1727768668908,500.0,0.00021999,120]
[339627076,1727768669872,500.0,0.00021999,120]
[339627077,1727768671202,500.0,0.00021999,120]
[339627078,1727768671994,1106.55,0.00021999,120]
[339627079,1727768672803,592.20699808,0.00021999,120]
[339627080,1727768673828,500.0,0.00021999,120]
[339627081,1727768673916,500.0,0.00021999,120]
[339627082,1727768674791,500.0,0.00021999,120]
[339627083,1727768674986,500.0,0.00021999,120]
[339627084,1727768675335,897.44,0.00021999,120]
[339627085,1727768679095,500.0,0.00021999,120]
[339627086,1727768679978,500.0,0.00021999,120]
[339627087,1727768681210,500.0,0.00021999,120]
[339627088,1727768683034,500.0,0.00021999,120]
[339627089,1727768683437,500.0,0.00021999,120]
[339627090,1727768683689,500.0,0.00021999,120]
[339627091,1727768686217,500.0,0.00021999,120]
[339627092,1727768689306,615.52,0.00021999,120]
[339627093,1727768690187,500.0,0.00021999,120]
[339627094,1727768692032,500.0,0.00021999,120]
[339627095,1727768693473,500.0,0.00021999,120]
[339627096,1727768693730,500.0,0.00021999,120]
[339627097,1727768695561,500.0,0.00021999,120]
[339627098,1727768695637,500.0,0.00021999,120]
[339627099,1727768695694,521.8501093,0.00021999,120]
[339627100,1727768697716,500.0,0.00021999,120]
[339627101,1727768698304,869.24,0.00021999,120]
[339627103,1727768699184,500.0,0.00021999,120]
[339627104,1727768703055,500.0,0.00021999,120]
[339627108,1727768704637,766.33,0.00021999,120]
[339627112,1727768705549,691.37,0.00021999,120]
[339627114,1727768705828,608.77,0.00021999,120]
[339627115,1727768706433,714.41,0.00021999,120]
[339627116,1727768706890,500.0,0.00021999,120]
[339627117,1727768707078,500.0,0.00021999,120]
[339627118,1727768708030,500.0,0.00021999,120]
[339627119,1727768712466,500.0,0.00021999,120]
[339627120,1727768712925,500.0,0.00021999,120]
[339627121,1727768714293,500.0,0.00021999,120]
[339627122,1727768716357,500.0,0.00021999,120]
[339627123,1727768717029,677.04,0.00021999,120]
[339627124,1727768717260,500.0,0.00021999,120]
[339627125,1727768718606,512.20851875,0.00021999,120]
[339627126,1727768719163,500.0,0.00021999,120]
[339627127,1727768720101,500.0,0.00021999,120]
[339627128,1727768720819,502.80628971,0.00021999,120]
[339627132,1727768722457,500.0,0.00021999,120]
[339627133,1727768723179,500.0,0.00021999,120]
[339627134,1727768723311,500.0,0.00021999,120]
[339627137,1727768724175,500.0,0.00021999,120]
[339627139,1727768725413,500.76847552,0.00021999,120]
[339627140,1727768725502,452.36,0.00021999,120]
[339627141,1727768727536,500.0,0.00021999,120]
[339627142,1727768727590,500.0,0.00021999,120]
[339627143,1727768727702,500.0,0.00021999,120]
[339627144,1727768728166,589.76,0.00021999,120]
[339627145,1727768728478,500.0,0.00021999,120]
[339627146,1727768730337,500.0,0.00021999,120]
[339627147,1727768731503,510.26530325,0.00021999,120]
[339627148,1727768733423,500.0,0.00021999,120]
[339627149,1727768735676,500.0,0.00021999,120]
[339627150,1727768735732,500.0,0.00021999,120]
[339627151,1727768736226,839.69,0.00021999,120]
[339627152,1727768736679,624.26,0.00021999,120]
[339627153,1727768736836,500.0,0.00021999,120]
[339627157,1727768737870,500.0,0.00021999,120]
[339627158,1727768738069,500.0,0.00021999,120]
[339627159,1727768738236,500.0,0.00021999,120]
[339627160,1727768739730,570.61590672,0.00021999,120]
[339627161,1727768740116,500.0,0.00021999,120]
[339627162,1727768741345,549.18,0.00021999,120]
[339627163,1727768741565,500.0,0.00021999,120]
[339627164,1727768742522,500.0,0.00021999,120]
[339627165,1727768745813,500.0,0.00021999,120]
[339627166,1727768746073,500.0,0.00021999,120]
[339627167,1727768746134,500.0,0.00021999,120]
[339627168,1727768747099,500.0,0.00021999,120]
[339627169,1727768748387,207.85753214,0.00021999,120]
[339627170,1727768749041,536.1,0.00021999,120]
[339627171,1727768749853,500.0,0.00021999,120]
[339627172,1727768750414,161.79069515,0.00021999,120]
[339627173,1727768752353,500.0,0.00021999,120]
[339627174,1727768752947,500.0,0.00021999,120]
[339627175,1727768753076,500.0,0.00021999,120]
[339627176,1727768754792,500.0,0.00021999,120]
[339627177,1727768755349,770.31,0.00021999,120]
[339627178,1727768755725,600.53,0.00021999,120]
[339627179,1727768755801,500.45307382,0.00021999,120]
[339627181,1727768757011,500.0,0.00021999,120]
[339627182,1727768757927,500.0,0.00021999,120]
[339627183,1727768758367,500.0,0.00021999,120]
[339627184,1727768758667,606.67,0.00021999,120]
[339627185,1727768759363,500.0,0.00021999,120]
[339627187,1727768763439,500.0,0.00021999,120]
[339627188,1727768765781,500.0,0.00021999,120]
[339627189,1727768766147,150.0,0.00021999,120]
[339627190,1727768766247,500.0,0.00021999,120]
[339627191,1727768767711,500.0,0.00021999,120]
[339627192,1727768767784,500.0,0.00021999,120]
[339627193,1727768767858,814.29,0.00021999,120]
[339627194,1727768768537,500.0,0.00021999,120]
[339627196,1727768770173,627.24,0.00021999,120]
[339627197,1727768771279,600.24,0.00021999,120]
[339627198,1727768771476,500.0,0.00021999,120]
[339627199,1727768772829,500.0,0.00021999,120]
[339627200,1727768775126,500.0,0.00021999,120]
[339627201,1727768775573,500.0,0.00021999,120]
[339627202,1727768775937,500.0,0.00021999,120]
[339627203,1727768779684,500.0,0.00021999,120]
[339627204,1727768780116,758.82,0.00021999,120]
[339627205,1727768780930,500.0,0.00021999,120]
[339627206,1727768781075,500.0,0.00021999,120]
[339627207,1727768781269,714.73,0.00021999,120]
[339627208,1727768781328,467.42800892,0.00021999,120]
[339627209,1727768782334,500.0,0.00021999,120]
[339627210,1727768784130,501.59696263,0.00021999,120]
[339627211,1727768785187,500.0,0.00021999,120]
[339627212,1727768787652,500.0,0.00021999,120]
[339627213,1727768788143,750.0,0.00021999,120]
[339627214,1727768789586,500.0,0.00021999,120]
[339627215,1727768791007,556.68,0.00021999,120]
[339627216,1727768791422,500.0,0.00021999,120]
[339627217,1727768792274,500.0,0.00021999,120]
[339627222,1727768795197,500.0,0.00021999,120]
[339627223,1727768796298,411.76769761,0.00021999,120]
[339627224,1727768797613,543.13,0.00021999,120]
[339627225,1727768798142,500.0,0.00021999,120]
[339627226,1727768798305,872.16,0.00021999,120]
[339627227,1727768798575,501.45851506,0.00021999,120]
[339627228,1727768799566,629.49,0.00021999,120]
[339627229,1727768800759,500.0,0.00021999,120]
[339627230,1727768804413,500.0,0.00021999,120]
[339627231,1727768804886,500.0,0.00021999,120]
[339627232,1727768805759,570.21,0.00021999,120]
[339627233,1727768806914,500.0,0.00021999,120]
[339627234,1727768807163,500.0,0.00021999,120]
[339627235,1727768808068,500.0,0.00021999,120]
[339627236,1727768808623,169.68926036,0.00021999,120]
[339627238,1727768815031,500.0,0.00021999,120]
[339627239,1727768817154,501.67691808,0.00021999,120]
[339627240,1727768817207,500.0,0.00021999,120]
[339627241,1727768817415,500.0,0.00021999,120]
[339627242,1727768817508,500.0,0.00021999,120]
[339627243,1727768817563,560.89,0.00021999,120]
[339627244,1727768819064,500.0,0.00021999,120]
[339627245,1727768819814,500.0,0.00021999,120]
[339627246,1727768822261,500.0,0.00021999,120]
[339627247,1727768822779,500.0,0.00021999,120]
[339627248,1727768822892,385.40809043,0.00021999,120]
[339627249,1727768825288,500.0,0.00021999,120]
[339627250,1727768825740,584.02,0.00021999,120]
[339627251,1727768826464,500.0,0.00021999,120]
[339627252,1727768828282,500.0,0.00021999,120]
[339627253,1727768828453,603.85,0.00021999,120]
[339627254,1727768828984,500.0,0.00021999,120]
[339627255,1727768831583,502.80377268,0.00021999,120]
[339627256,1727768832584,500.0,0.00021999,120]
[339627257,1727768834353,703.13,0.00021999,120]
[339627258,1727768835633,500.0,0.00021999,120]
[339627259,1727768837778,500.0,0.00021999,120]
[339627260,1727768837836,500.0,0.00021999,120]
[339627261,1727768837897,507.99002886,0.00021999,120]
[339627262,1727768838454,580.00359851,0.00021999,120]
[339627263,1727768839745,500.0,0.00021999,120]
[339627264,1727768842109,500.0,0.00021999,120]
[339627265,1727768842551,500.0,0.00021999,120]
[339627267,1727768843979,500.0,0.00021999,120]
[339627268,1727768846367,348.9412917,0.00021999,120]
[339627269,1727768846715,500.0,0.00021999,120]
[339627270,1727768846780,500.0,0.00021999,120]
[339627271,1727768848794,500.0,0.00021999,120]
[339627272,1727768849408,500.0,0.00021999,120]
[339627274,1727768849704,500.0,0.00021999,120]
[339627277,1727768850905,1107.63,0.00021999,120]
[339627280,1727768851782,500.0,0.00021999,120]
[339627287,1727768854317,500.0,0.00021999,120]
[339627289,1727768854540,941.37,0.00021999,120]
[339627293,1727768855549,500.0,0.00021999,120]
[339627296,1727768857035,500.0,0.00021999,120]
[339627298,1727768857275,500.0,0.00021999,120]
[339627300,1727768857745,642.86,0.00021999,120]
[339627302,1727768858053,500.0,0.00021999,120]
[339627306,1727768859021,500.0,0.00021999,120]
[339627308,1727768859529,500.0,0.00021999,120]
[339627309,1727768859634,500.0,0.00021999,120]
[339627312,1727768860721,645.69,0.00021999,120]
[339627314,1727768861073,225.12896718,0.00021999,120]
[339627315,1727768865208,500.0,0.00021999,120]
[339627316,1727768865271,500.0,0.00021999,120]
[339627317,1727768865855,500.0,0.00021999,120]
[339627318,1727768866402,500.0,0.00021999,120]
[339627319,1727768867190,500.0,0.00021999,120]
[339627321,1727768868361,587.26,0.00021999,120]
[339627324,1727768869391,500.0,0.00021999,120]
[339627326,1727768869676,500.0,0.00021999,120]
[339627328,1727768870156,500.0,0.00021999,120]
[339627329,1727768870215,374.9243351,0.00021999,120]
[339627331,1727768870414,500.0,0.00021999,120]
[339627332,1727768870463,500.0,0.00021999,120]
[339627336,1727768872005,500.0,0.00021999,120]
[339627337,1727768872337,500.0,0.00021999,120]
[339627338,1727768873344,560.66675662,0.00021999,120]
[339627339,1727768875103,500.0,0.00021999,120]
[339627340,1727768875872,500.0,0.00021999,120]
[339627341,1727768876973,500.0,0.00021999,120]
[339627346,1727768879181,500.0,0.00021999,120]
[339627347,1727768879248,500.0,0.00021999,120]
[339627348,1727768881146,514.70695188,0.00021999,120]
[339627349,1727768882252,500.75182695,0.00021999,120]
[339627350,1727768883183,500.0,0.00021999,120]
[339627351,1727768884363,500.0,0.00021999,120]
[339627352,1727768884582,500.0,0.00021999,120]
[339627353,1727768884825,229.59451671,0.00021999,120]
[339627354,1727768885594,500.0,0.00021999,120]
[339627355,1727768885908,500.0,0.00021999,120]
[339627356,1727768886002,500.0,0.00021999,120]
[339627357,1727768887261,500.0,0.00021999,120]
[339627358,1727768888846,500.0,0.00021999,120]
[339627359,1727768888990,500.0,0.00021999,120]
[339627360,1727768889406,500.0,0.00021999,120]
[339627361,1727768889787,500.0,0.00021999,120]
[339627362,1727768890929,500.0,0.00021999,120]
[339627363,1727768891146,500.0,0.00021999,120]
[339627364,1727768891722,501.34810573,0.00021999,120]
[339627365,1727768892213,500.0,0.00021999,120]
[339627367,1727768893480,500.0,0.00021999,120]
[339627369,1727768893727,500.0,0.00021999,120]
[339627372,1727768895814,500.0,0.00021999,120]
[339627373,1727768896550,500.0,0.00021999,120]
[339627374,1727768897726,500.0,0.00021999,120]
[339627375,1727768898525,500.0,0.00021999,120]
[339627376,1727768899809,586.76,0.00021999,120]
[339627377,1727768900217,633.06,0.00021999,120]
[339627378,1727768900934,500.0,0.00021999,120]
[339627379,1727768903213,500.0,0.00021999,120]
[339627380,1727768904504,500.0,0.00021999,120]
[339627381,1727768904608,500.0,0.00021999,120]
[339627382,1727768904942,500.0,0.00021999,120]
[339627383,1727768907072,500.0,0.00021999,120]
[339627384,1727768909326,500.0,0.00021999,120]
[339627385,1727768910779,500.0,0.00021999,120]
[339627386,1727768911204,500.0,0.00021999,120]
[339627387,1727768911964,500.0,0.00021999,120]
[339627388,1727768913097,500.0,0.00021999,120]
[339627389,1727768913861,500.0,0.00021999,120]
[339627390,1727768914309,612.8,0.00021999,120]
[339627391,1727768914860,555.19,0.00021999,120]
[339627392,1727768914923,500.0,0.00021999,120]
[339627393,1727768915635,438.86698011,0.00021999,120]
[339627394,1727768917471,500.0,0.00021999,120]
[339627395,1727768918217,500.0,0.00021999,120]
[339627397,1727768918862,500.0,0.00021999,120]
[339627399,1727768919511,713.65,0.00021999,120]
[339627403,1727768922661,500.0,0.00021999,120]
[339627404,1727768922703,500.0,0.00021999,120]
[339627405,1727768924094,500.0,0.00021999,120]
[339627406,1727768924820,500.0,0.00021999,120]
[339627407,1727768924879,336.60100673,0.00021999,120]
[339627408,1727768925466,354.59748936,0.00021999,120]
[339627409,1727768926020,500.0,0.00021999,120]
[339627410,1727768926975,500.0,0.00021999,120]
[339627411,1727768927367,1398.0,0.00021,60]
[339627412,1727768929617,500.0,0.00021999,120]
[339627413,1727768930903,500.0,0.00021999,120]
[339627414,1727768931583,500.0,0.00021999,120]
[339627415,1727768933632,500.0,0.00021999,120]
[339627416,1727768933710,500.0,0.00021999,120]
[339627417,1727768933753,500.0,0.00021999,120]
[339627418,1727768934554,500.0,0.00021999,120]
[339627419,1727768935305,500.0,0.00021999,120]
[339627420,1727768935423,500.0,0.00021999,120]
[339627421,1727768936576,500.0,0.00021999,120]
[339627422,1727768936699,505.80491718,0.00021999,120]
[339627423,1727768938034,819.99,0.00021999,120]
[339627424,1727768938206,500.0,0.00021999,120]
[339627434,1727768940145,500.0,0.00021999,120]
[339627435,1727768941195,581.58,0.00021999,120]
[339627436,1727768942480,500.0,0.00021999,120]
[339627437,1727768943390,500.0,0.00021999,120]
[339627438,1727768944184,500.0,0.00021999,120]
[339627439,1727768944822,500.0,0.00021999,120]
[339627440,1727768945310,597.62,0.00021999,120]
[339627441,1727768946862,500.0,0.00021999,120]
[339627442,1727768947171,860.05,0.00021999,120]
[339627443,1727768947785,500.0,0.00021999,120]
[339627444,1727768948573,500.0,0.00021999,120]
[339627445,1727768949390,500.0,0.00021999,120]
[339627446,1727768949810,500.0,0.00021999,120]
[339627447,1727768950076,500.0,0.00021999,120]
[339627448,1727768950542,605.62410822,0.00021999,120]
[339627449,1727768950774,583.41,0.00021999,120]
[339627450,1727768951406,500.0,0.00021999,120]
[339627451,1727768954056,500.0,0.00021999,120]
[339627452,1727768955756,500.0,0.00021999,120]
[339627453,1727768956282,500.0,0.00021999,120]
[339627454,1727768956808,500.0,0.00021999,120]
[339627455,1727768960801,506.81076834,0.00021999,120]
[339627456,1727768961285,500.0,0.00021999,120]
[339627457,1727768961333,500.0,0.00021999,120]
[339627458,1727768961486,500.0,0.00021999,120]
[339627459,1727768962116,896.47,0.00021999,120]
[339627460,1727768962706,757.98,0.00021999,120]
[339627461,1727768962788,500.0,0.00021999,120]
[339627462,1727768963727,525.45235856,0.00021999,120]
[339627463,1727768963972,804.7,0.00021999,120]
[339627464,1727768964021,500.0,0.00021999,120]
[339627467,1727768965484,581.56,0.00021999,120]
[339627468,1727768967934,500.0,0.00021999,120]
[339627469,1727768968917,550.03,0.00021999,120]
[339627470,1727768969268,500.0,0.00021999,120]
[339627471,1727768970922,500.0,0.00021999,120]
[339627472,1727768971163,500.0,0.00021999,120]
[339627473,1727768971621,500.0,0.00021999,120]
[339627474,1727768972595,500.0,0.00021999,120]
[339627477,1727768973661,500.0,0.00021999,120]
[339627478,1727768973742,500.0,0.00021999,120]
[339627479,1727768977174,513.76,0.00021999,120]
[339627480,1727768977219,500.0,0.00021999,120]
[339627481,1727768978765,594.16630369,0.00021999,120]
[339627482,1727768979030,500.0,0.00021999,120]
[339627483,1727768980632,500.0,0.00021999,120]
[339627484,1727768980877,588.98,0.00021999,120]
[339627485,1727768981322,500.0,0.00021999,120]
[339627486,1727768981408,500.0,0.00021999,120]
[339627487,1727768982025,500.0,0.00021999,120]
[339627488,1727768982249,500.0,0.00021999,120]
[339627489,1727768985941,500.0,0.00021999,120]
[339627490,1727768987282,500.0,0.00021999,120]
[339627491,1727768987885,500.0,0.00021999,120]
[339627494,1727768990375,500.0,0.00021999,120]
[339627495,1727768990915,583.86599324,0.00021999,120]
[339627496,1727768991024,500.0,0.00021999,120]
[339627497,1727768991562,563.94,0.00021999,120]
[339627498,1727768992530,500.0,0.00021999,120]
[339627499,1727768992746,500.0,0.00021999,120]
[339627500,1727768994095,612.8404273,0.00021999,120]
[339627501,1727768994464,500.0,0.00021999,120]
[339627502,1727768994705,426.11290321,0.00021999,120]
[339627503,1727768994880,738.21,0.00021999,120]
[339627504,1727768995319,527.57,0.00021999,120]
[339627505,1727768995360,500.0,0.00021999,120]
[339627506,1727768995531,500.0,0.00021999,120]
[339627507,1727768996187,500.0,0.00021999,120]
[339627508,1727768996753,601.11,0.00021999,120]
[339627510,1727768997552,271.19668786,0.00021999,120]
[339627511,1727768997603,500.0,0.00021999,120]
[339627512,1727768997643,500.0,0.00021999,120]
[339627513,1727769001520,500.0,0.00021999,120]
[339627514,1727769001765,504.54208041,0.00021999,120]
[339627515,1727769003071,566.57560543,0.00021999,120]
[339627516,1727769003469,500.0,0.00021999,120]
[339627517,1727769003556,290.37916798,0.00021999,120]
[339627518,1727769003643,500.0,0.00021999,120]
[339627519,1727769004801,500.0,0.00021999,120]
[339627520,1727769005119,1000.0,0.00021999,120]
[339627521,1727769005379,500.0,0.00021999,120]
[339627522,1727769005614,500.0,0.00021999,120]
[339627523,1727769007403,500.0,0.00021999,120]
[339627524,1727769007642,500.0,0.00021999,120]
[339627525,1727769007713,500.0,0.00021999,120]
[339627526,1727769007821,500.0,0.00021999,120]
[339627527,1727769009071,1067.76,0.00021999,120]
[339627528,1727769010405,500.0,0.00021999,120]
[339627529,1727769010664,500.0,0.00021999,120]
[339627530,1727769010787,549.86,0.00021999,120]
[339627531,1727769011946,500.0,0.00021999,120]
[339627532,1727769013337,500.59682487,0.00021999,120]
[339627534,1727769017497,500.0,0.00021999,120]
[339627535,1727769018080,500.0,0.00021999,120]